bitfinex/quotes_ETHUSD_20240821
["timestamp","ask_amount","ask_price","bid_price","bid_amount"]
[1724270871219,0.0815823,2654.8,2654.5,3.76706]
[1724270871433,0.00647663,2654.8,2654.7,7.5338]
[1724270871575,3.7649,2656.2,2654.8,3.76672]
[1724270871775,3.7649,2656.2,2654.9,3.0]
[1724270872126,4.14153,2656.1,2654.9,3.0]
[1724270872417,0.37649,2656.1,2654.9,3.0]
[1724270872582,4.15707166,2657.1,2654.6,4.0566]
[1724270872583,3.76469,2656.3,2655.1,3.76632]
[1724270872784,0.39348166,2657.1,2654.7,6.76686]
[1724270872994,0.39348166,2657.1,2654.7,3.0]
[1724270872995,3.76478,2656.2,2654.7,3.0]
[1724270873202,3.76503,2656.1,2654.9,3.76661]
[1724270873417,3.76503,2656.1,2655.0,3.0]
[1724270873584,0.752981,2656.0,2655.0,3.0]
[1724270873788,0.752981,2656.0,2654.6,4.0566]
[1724270874022,0.752981,2656.0,2654.7,3.0]
[1724270874174,0.55,2655.9,2654.7,3.0]
[1724270874506,3.76575,2655.6,2654.7,3.0]
[1724270874701,0.55,2655.5,2654.7,3.0]
[1724270875054,4.31579,2655.5,2654.7,3.0]
[1724270875325,3.76617,2655.3,2654.1,4.047]
[1724270875477,3.76658,2655.0,2654.1,4.047]
[1724270875888,3.76619,2655.2,2654.1,4.047]
[1724270876084,4.31588,2655.5,2654.2,3.76759]
[1724270876307,0.55,2655.5,2654.1,7.81475]
[1724270876487,4.197605,2655.4,2654.1,4.828475]
[1724270876687,5.578,2656.2,2654.1,4.828475]
[1724270876688,3.7654,2655.8,2654.1,4.828475]
[1724270877035,3.7658,2655.5,2654.8,4.047]
[1724270877233,4.0125,2656.6,2654.8,7.81374]
[1724270877234,3.76509,2656.0,2654.8,7.81374]
[1724270877434,3.76509,2656.0,2654.9,3.0]
[1724270877435,3.76513,2656.0,2654.9,3.0]
[1724270877733,0.376513,2655.9,2654.9,6.7666]
[1724270877874,3.76513,2656.0,2654.9,6.7666]
[1724270878079,3.7648,2656.2,2655.0,3.76638]
[1724270878308,3.76513,2656.0,2655.1,3.0]
[1724270878511,3.76513,2656.0,2654.9,6.7666]
[1724270878831,3.76482,2656.2,2655.0,3.76645]
[1724270879035,0.376482,2656.1,2655.1,3.0]
[1724270879632,4.141402,2656.1,2655.1,3.0]
[1724270880441,0.39348166,2657.1,2656.0,7.77243]
[1724270880649,0.1266909,2657.4,2656.3,4.0074]
[1724270880800,11.20158,2658.5,2656.6,4.0074]
[1724270880801,3.76154,2658.5,2656.6,4.0074]
[1724270880976,3.76142,2658.6,2656.5,4.46432]
[1724270880977,1.120158,2658.4,2657.6,2.0074]
[1724270881325,3.76177,2658.4,2657.6,2.0074]
[1724270881676,3.76103,2658.9,2657.6,2.0074]
[1724270881878,3.76103,2658.9,2657.2,3.0]
[1724270881879,3.76265,2657.7,2657.2,3.0]
[1724270882084,3.76338,2657.2,2656.6,3.0]
[1724270882328,3.76242,2657.9,2655.7,3.76539]
[1724270882329,3.76389,2656.9,2655.7,3.76539]
[1724270882545,3.76307,2657.5,2655.6,0.7]
[1724270882546,3.7633,2657.3,2655.6,0.7]
[1724270882832,3.76324,2657.3,2656.2,3.76476]
[1724270882992,3.76324,2657.3,2656.0,3.76495]
[1724270883177,7.902914,2657.3,2656.0,4.141445]
[1724270883381,3.76272,2657.7,2656.0,4.141495]
[1724270883614,3.76294,2657.5,2656.1,3.0]
[1724270883797,3.76335,2657.3,2656.2,3.76466]
[1724270884014,3.76315,2657.4,2656.3,6.8663]
[1724270884214,3.76284,2657.6,2656.3,6.8663]
[1724270884215,3.76363,2657.1,2656.3,6.8663]
[1724270884419,0.55,2658.1,2656.3,10.63083]
[1724270884596,3.76317,2657.4,2656.3,12.070397]
[1724270884799,3.76317,2657.4,2656.3,8.305867]
[1724270884800,3.76312,2657.4,2656.3,8.305867]
[1724270885329,3.76312,2657.4,2656.3,15.834937]
[1724270885634,4.20825,2658.0,2656.3,15.834937]
[1724270885635,3.76245,2657.9,2656.9,3.76367]
[1724270885817,3.76176,2658.4,2657.0,6.76359]
[1724270885985,7.44,2659.0,2657.0,6.76359]
[1724270885986,3.76219,2658.1,2657.0,6.76359]
[1724270886683,7.52439,2658.1,2657.0,6.76359]
[1724270886884,3.76219,2658.1,2657.0,6.76359]
[1724270887190,4.152,2658.2,2656.2,4.0219]
[1724270887508,3.76345,2657.2,2656.2,4.0219]
[1724270888078,3.76378,2656.9,2656.2,4.0219]
[1724270888277,3.76284,2657.6,2655.6,4.0219]
[1724270888278,3.76493,2656.1,2655.6,4.0219]
[1724270888445,3.55,2657.1,2655.6,4.0219]
[1724270888446,3.76445,2656.5,2655.6,4.0219]
[1724270888628,3.76417,2656.7,2655.6,4.0219]
[1724270888829,3.76364,2657.0,2655.8,3.76531]
[1724270889032,3.76364,2657.0,2655.7,3.76542]
[1724270889033,4.3135,2657.1,2655.6,4.800654]
[1724270889233,3.76333,2657.3,2656.1,3.76483]
[1724270889478,3.76298,2657.5,2656.3,3.76452]
[1724270889686,3.76298,2657.5,2656.2,4.0566]
[1724270889687,3.76331,2657.3,2656.2,7.82136]
[1724270889993,3.7628,2657.6,2656.6,3.76415]
[1724270890200,7.91160367,2658.6,2656.6,3.76415]
[1724270890201,3.76047,2659.3,2656.8,4.0566]
[1724270890332,3.76127,2658.7,2657.7,3.76264]
[1724270890542,3.76099,2658.9,2657.8,10.819]
[1724270890770,3.76122,2658.8,2657.8,7.0566]
[1724270891078,3.76121,2658.8,2657.8,7.0566]
[1724270891280,3.76083,2659.0,2657.8,8.138524]
[1724270891603,3.76189,2658.3,2657.8,3.0]
[1724270891734,6.01025312,2659.4,2657.2,4.0566]
[1724270891735,3.76258,2657.8,2657.2,4.0566]
[1724270891936,3.76204,2658.2,2657.2,4.0566]
[1724270892252,3.76318,2657.4,2656.6,4.0566]
[1724270892454,3.76328,2657.3,2656.6,4.0566]
[1724270892650,7.52662,2657.3,2656.6,4.0566]
[1724270892984,3.76328,2657.3,2656.6,4.0566]
[1724270893330,0.55,2657.2,2656.6,4.0566]
[1724270893637,3.76367,2657.0,2656.6,4.0566]
[1724270893839,3.76401,2656.8,2656.0,4.0566]
[1724270894151,3.76427,2656.6,2656.0,4.0566]
[1724270894536,3.76447,2656.5,2656.0,4.0566]
[1724270894732,4.31343,2657.2,2656.0,4.46226]
[1724270894969,5.578,2657.9,2656.0,4.46226]
[1724270894970,3.76317,2657.4,2656.0,4.46226]
[1724270895295,3.76317,2657.4,2656.2,3.76465]
[1724270895494,3.76317,2657.4,2656.0,8.22727]
[1724270895495,3.7638,2656.9,2656.3,3.0]
[1724270895645,3.76351,2657.1,2656.1,3.0]
[1724270895842,3.76252,2657.8,2656.2,4.47034]
[1724270896085,3.7633,2657.3,2656.3,3.0]
[1724270896290,3.7633,2657.3,2656.2,0.70566]
[1724270896469,3.7633,2657.3,2656.2,4.4704]
[1724270896675,3.7633,2657.3,2656.3,3.0]
[1724270896997,7.52664,2657.3,2656.3,3.0]
[1724270897138,3.7633,2657.3,2656.3,3.0]
[1724270897772,3.7635,2657.1,2656.3,3.0]
[1724270897942,3.7633,2657.3,2656.2,0.70566]
[1724270898142,4.13963,2657.3,2656.2,0.70566]
[1724270898548,4.13963,2657.3,2656.2,4.47043]
[1724270898750,4.13963,2657.3,2656.3,3.0]
[1724270899300,4.13963,2657.3,2656.2,0.70566]
[1724270899301,7.90297,2657.3,2656.2,0.70566]
[1724270899477,7.90295,2657.3,2656.2,4.47043]
[1724270899647,3.76375,2657.0,2656.3,3.0]
[1724270899849,3.76375,2657.0,2656.0,4.0566]
[1724270900103,0.55,2657.2,2656.0,4.0566]
[1724270900399,3.76476,2656.3,2655.3,4.3102]
[1724270900692,3.76528,2655.9,2655.3,4.3102]
[1724270900842,3.76579,2655.5,2654.8,4.3102]
[1724270901046,3.765,2656.1,2654.8,4.3102]
[1724270901047,3.765,2656.1,2654.9,3.76652]
[1724270901246,0.37641,2656.6,2655.3,3.76602]
[1724270901501,3.76451,2656.4,2655.3,3.76593]
[1724270901649,0.55,2656.3,2655.0,3.76645]
[1724270901851,0.55,2656.5,2655.5,4.3102]
[1724270902066,3.76429,2656.6,2655.5,4.3102]
[1724270902244,9.6156,2657.5,2655.5,4.3102]
[1724270902245,3.76316,2657.4,2656.0,3.76498]
[1724270902444,3.76366,2657.0,2656.1,7.686698]
[1724270902649,3.76366,2657.0,2656.1,7.3102]
[1724270903365,3.76395,2656.8,2656.1,7.3102]
[1724270903565,3.76366,2657.0,2656.1,7.3102]
[1724270904162,3.76396,2656.8,2656.1,7.3102]
[1724270904363,3.76436,2656.5,2656.1,4.3102]
[1724270904570,3.76393,2656.8,2655.6,4.0572]
[1724270904877,3.76475,2656.3,2655.6,4.0572]
[1724270905042,0.55,2656.7,2655.6,4.0572]
[1724270905043,3.76443,2656.5,2655.6,4.0572]
[1724270905249,3.76385,2656.9,2655.6,4.46292]
[1724270905451,3.76385,2656.9,2655.9,3.76517]
[1724270905717,3.76451,2656.4,2655.6,4.46292]
[1724270905988,3.7637,2657.0,2655.6,4.0572]
[1724270905989,3.76437,2656.5,2655.6,4.0572]
[1724270906193,3.76382,2656.9,2655.6,4.0572]
[1724270906394,3.76457,2656.4,2655.6,4.0572]
[1724270906990,0.55,2656.8,2655.6,4.0572]
[1724270906991,3.76494,2656.1,2655.6,4.0572]
[1724270907194,7.906464,2656.1,2655.6,4.0572]
[1724270907348,3.76507,2656.0,2655.6,4.0572]
[1724270907686,3.76438,2656.5,2654.8,3.9276]
[1724270907687,3.76527,2655.9,2654.8,3.9276]
[1724270907888,3.76547,2655.8,2654.8,3.9276]
[1724270908688,3.76559,2655.7,2654.8,3.9276]
[1724270908864,3.76563,2655.6,2654.8,3.9276]
[1724270909188,3.76563,2655.6,2654.8,4.69706]
[1724270909404,3.76563,2655.6,2654.8,3.9276]
[1724270909905,3.76485,2656.2,2655.1,3.9725]
[1724270910053,3.76516,2656.0,2655.1,3.9725]
[1724270910261,3.76606,2655.3,2655.1,3.9725]
[1724270910457,3.76606,2655.3,2654.3,3.9725]
[1724270910693,3.76671,2654.9,2654.3,3.9725]
[1724270911153,3.767,2654.7,2654.3,3.9725]
[1724270911363,3.767,2654.7,2653.4,3.9725]
[1724270911561,3.76762,2654.2,2653.5,0.774135]
[1724270912113,3.76638,2655.1,2653.4,3.9725]
[1724270912114,5.578,2654.5,2653.4,3.9725]
[1724270912257,5.578,2654.9,2653.4,3.9725]
[1724270912608,3.7673,2654.5,2653.4,3.9725]
[1724270912757,3.76694,2654.7,2653.4,7.74123]
[1724270912952,3.76721,2654.5,2653.5,0.774123]
[1724270913274,21.51877182,2657.0,2653.5,0.774123]
[1724270913275,3.76536,2655.8,2654.3,3.76746]
[1724270913457,3.76549,2655.7,2654.7,4.0624]
[1724270913659,9.34341,2655.8,2654.7,4.0624]
[1724270913857,3.7664,2655.1,2654.7,4.0624]
[1724270914105,3.76506,2656.0,2654.8,3.0]
[1724270914303,3.76591,2655.4,2654.7,4.0624]
[1724270914473,3.76607,2655.3,2654.7,4.0624]
[1724270915093,3.76647,2655.0,2654.3,4.1815]
[1724270915699,3.76663,2654.9,2654.3,4.1815]
[1724270916709,3.76679,2654.8,2654.3,4.1815]
[1724270917071,3.76663,2654.9,2654.3,4.1815]
[1724270917900,3.76676,2654.8,2654.3,4.1815]
[1724270918105,7.53339,2654.9,2654.3,4.1815]
[1724270918285,3.76663,2654.9,2654.3,4.1815]
[1724270918711,3.7668,2654.8,2654.3,4.1815]
[1724270919031,3.76663,2654.9,2654.3,4.1815]
[1724270919555,3.7669,2654.7,2654.3,4.1815]
[1724270919685,3.7669,2654.7,2653.2,3.76898]
[1724270919686,3.76738,2654.4,2653.8,3.9159]
[1724270919886,3.76699,2654.7,2653.8,3.9159]
[1724270920134,0.55,2654.6,2653.8,3.9159]
[1724270920456,5.578,2654.8,2653.8,4.30749]
[1724270920599,5.578,2654.8,2653.8,3.9159]
[1724270921090,3.76705,2654.6,2653.8,3.9159]
[1724270921483,3.76741,2654.4,2653.8,3.9159]
[1724270923537,3.76747,2654.3,2653.8,3.9159]
[1724270923748,3.76747,2654.3,2653.4,3.9159]
[1724270923749,3.76828,2653.8,2653.4,3.9159]
[1724270923923,3.76828,2653.8,2653.0,3.9159]
[1724270924241,4.31838,2653.7,2653.0,3.9159]
[1724270924420,3.76854,2653.6,2653.0,3.9159]
[1724270924620,0.55,2653.5,2653.0,3.9159]
[1724270924807,4.31861,2653.5,2653.0,3.9159]
[1724270925141,3.76807,2653.9,2653.0,4.30749]
[1724270925412,3.76667,2654.9,2653.0,4.30749]
[1724270925413,3.76697,2654.7,2653.0,0.39159]
[1724270925569,3.76697,2654.7,2652.4,4.19676483]
[1724270925570,3.76721,2654.5,2653.8,4.2442]
[1724270925727,13.5908,2655.3,2653.8,4.2442]
[1724270925728,3.76734,2654.4,2653.8,4.2442]
[1724270926068,3.7671,2654.6,2653.8,4.2442]
[1724270926233,3.76718,2654.5,2653.8,4.2442]
[1724270926441,7.53365,2654.8,2653.8,4.2442]
[1724270926637,3.7669,2654.7,2653.8,4.2442]
[1724270926858,3.76706,2654.6,2653.8,4.2442]
[1724270927235,3.76719,2654.5,2653.8,4.2442]
[1724270927445,3.76736,2654.4,2653.8,4.2442]
[1724270928323,3.76736,2654.4,2653.3,3.0]
[1724270928324,0.55,2654.3,2653.3,7.2442]
[1724270928535,3.76773,2654.2,2653.3,7.2442]
[1724270928778,4.31738,2654.4,2653.3,7.2442]
[1724270928969,3.76758,2654.3,2653.3,7.2442]
[1724270929185,0.55,2654.2,2653.3,7.2442]
[1724270929663,9.8247,2655.3,2653.3,7.2442]
[1724270929965,9.8247,2655.3,2653.4,4.49313]
[1724270929966,3.76733,2654.4,2653.4,4.49313]
[1724270930359,7.53475,2654.4,2653.4,4.49313]
[1724270930558,7.53475,2654.4,2653.4,0.72442]
[1724270930559,3.76761,2654.2,2653.4,0.72442]
[1724270932377,3.76742,2654.4,2653.4,0.72442]
[1724270932547,7.53489,2654.4,2653.5,0.796862]
[1724270933071,3.7675,2654.3,2653.5,0.796862]
[1724270934269,3.76775,2654.1,2653.5,0.796862]
[1724270935486,3.7681,2653.9,2653.3,7.2442]
[1724270935648,3.76868,2653.5,2653.3,4.2442]
[1724270935980,3.76693,2654.7,2652.4,4.1859]
[1724270935981,3.76913,2653.2,2652.4,4.1859]
[1724270936134,3.76917,2653.1,2652.4,4.1859]
[1724270936447,3.76911,2653.2,2652.4,4.1859]
[1724270937150,3.76851,2653.6,2652.6,3.76979]
[1724270937356,3.76833,2653.7,2652.7,4.1408]
[1724270937553,3.76828,2653.8,2652.7,4.1408]
[1724270937554,3.76828,2653.8,2652.7,4.931859]
[1724270937895,3.76819,2653.8,2652.7,4.931859]
[1724270938233,3.76764,2654.2,2653.2,3.76902]
[1724270938234,3.76768,2654.2,2653.2,3.76902]
[1724270938481,3.76768,2654.2,2652.7,4.931859]
[1724270938482,3.76658,2655.0,2653.4,4.1408]
[1724270938683,3.76676,2654.8,2654.0,4.1408]
[1724270938896,0.753334,2654.8,2654.0,4.1408]
[1724270939041,9.34407,2655.3,2654.0,4.1408]
[1724270939042,3.76757,2654.3,2654.0,4.1408]
[1724270939370,7.53563,2654.1,2653.4,4.0938]
[1724270939683,3.76667,2654.9,2653.4,4.0938]
[1724270939835,3.76765,2654.2,2653.4,4.880082]
[1724270940294,3.7671,2654.6,2653.4,8.648742]
[1724270940446,3.76727,2654.5,2653.4,8.648742]
[1724270940801,3.76762,2654.2,2653.4,4.880082]
[1724270941091,3.76744,2654.4,2653.4,4.880082]
[1724270941253,3.76757,2654.3,2653.4,4.880082]
[1724270941455,3.76776,2654.1,2653.4,4.880082]
[1724270941639,3.7675,2654.3,2653.4,4.880082]
[1724270941840,3.76699,2654.7,2653.5,0.4880082]
[1724270942041,3.76678,2654.8,2653.8,3.76809]
[1724270942239,3.76678,2654.8,2653.6,4.1551]
[1724270942240,7.44,2654.8,2653.6,4.1551]
[1724270942457,3.76746,2654.4,2653.6,4.1551]
[1724270942687,7.44,2654.8,2653.6,4.57061]
[1724270942688,7.53428,2654.6,2653.6,4.57061]
[1724270942882,3.76726,2654.5,2653.6,4.57061]
[1724270943278,3.76734,2654.4,2653.6,4.57061]
[1724270943648,3.7675,2654.3,2653.6,4.57061]
[1724270944046,7.44,2654.8,2653.6,4.1551]
[1724270944266,7.44,2654.8,2653.4,3.0]
[1724270944267,4.1933,2654.4,2652.9,4.2457]
[1724270944469,3.76833,2653.7,2652.9,4.2457]
[1724270945813,3.76856,2653.6,2652.9,4.2457]
[1724270946015,3.76813,2653.9,2652.9,4.2457]
[1724270946314,3.7685,2653.6,2653.0,0.801519]
[1724270946481,3.76832,2653.7,2652.9,4.2457]
[1724270947018,3.76839,2653.7,2652.9,4.2457]
[1724270947221,7.53681,2653.7,2652.9,4.2457]
[1724270947516,3.76862,2653.5,2652.9,4.2457]
[1724270947671,3.76931,2653.0,2652.9,4.2457]
[1724270948074,3.7691,2653.2,2652.9,4.2457]
[1724270948075,3.76919,2653.1,2652.9,4.2457]
[1724270949170,7.53791,2653.3,2652.9,4.2457]
[1724270949403,3.7691,2653.2,2652.9,4.2457]
[1724270949602,3.76913,2653.2,2652.2,4.0544]
[1724270949781,11.20913,2653.2,2652.3,0.40544]
[1724270950118,14.97826,2653.2,2652.3,0.40544]
[1724270950275,11.20913,2653.2,2652.3,0.40544]
[1724270950678,11.20913,2653.2,2652.3,4.17574]
[1724270950874,7.44,2653.2,2652.3,4.17574]
[1724270951617,7.44,2653.2,2652.4,3.0]
[1724270952184,7.44,2653.2,2652.5,3.76995]
[1724270952386,3.76794,2654.0,2652.6,4.0615]
[1724270952387,7.44,2653.7,2652.6,4.0615]
[1724270952593,7.44,2653.7,2652.9,3.76936]
[1724270952788,3.76868,2653.5,2652.7,3.0]
[1724270953017,3.76868,2653.5,2652.6,4.0615]
[1724270953226,3.76907,2653.2,2652.6,4.0615]
[1724270953586,3.76885,2653.4,2652.6,4.0615]
[1724270953783,7.53773,2653.4,2652.6,4.0615]
[1724270954028,3.76885,2653.4,2652.6,4.0615]
[1724270954199,3.7689,2653.3,2652.6,4.0615]
[1724270955474,3.76885,2653.4,2652.6,4.0615]
[1724270955638,7.53767,2653.4,2652.6,4.0615]
[1724270955938,3.76882,2653.4,2652.6,4.0615]
[1724270956139,3.76855,2653.6,2652.6,4.46765]
[1724270956289,7.5371,2653.6,2652.6,4.46765]
[1724270956486,3.76855,2653.6,2652.6,4.46765]
[1724270956746,3.76855,2653.6,2652.6,8.23751]
[1724270956935,3.76855,2653.6,2652.7,1.200741]
[1724270957945,3.76854,2653.6,2652.7,1.200741]
[1724270958343,7.53712,2653.6,2652.6,7.83136]
[1724270958541,7.53709,2653.6,2652.6,7.83136]
[1724270958849,3.76854,2653.6,2652.6,7.83136]
[1724270959017,7.53709,2653.6,2652.6,7.83136]
[1724270959216,3.76862,2653.5,2652.6,4.0615]
[1724270960559,3.76862,2653.5,2652.6,5.221667]
[1724270961051,8.61153698,2653.6,2652.6,5.221667]
[1724270961235,7.44,2653.6,2652.7,6.76964]
[1724270961445,7.44,2653.6,2652.7,10.53928]
[1724270961766,7.44,2653.6,2652.8,3.76948]
[1724270961944,7.44,2653.6,2652.9,3.76934]
[1724270962152,1.17153698,2654.1,2653.6,3.76842]
[1724270962313,2.3649517,2654.6,2653.2,4.049]
[1724270962314,1.17153698,2654.6,2653.2,4.049]
[1724270962643,3.76773,2654.2,2653.3,3.0]
[1724270962846,3.76776,2654.1,2653.3,3.0]
[1724270963212,3.76789,2654.0,2653.3,3.0]
[1724270963553,3.76789,2654.0,2653.2,4.049]
[1724270963856,4.79481528,2654.0,2653.2,4.049]
[1724270964159,1.17153698,2653.8,2652.8,4.049]
[1724270964458,4.31814,2653.9,2652.8,4.049]
[1724270964757,1.17153698,2653.9,2652.8,7.81849]
[1724270964956,4.93963698,2653.9,2652.9,3.76936]
[1724270965157,1.17153698,2653.9,2653.0,4.928025]
[1724270965368,1.17153698,2654.1,2653.2,3.76896]
[1724270965530,3.76762,2654.2,2653.3,3.0]
[1724270965856,3.76777,2654.1,2653.3,3.0]
[1724270966064,3.76777,2654.1,2653.2,3.0]
[1724270966243,3.76777,2654.1,2653.3,0.7049]
[1724270966442,7.53564,2654.1,2653.3,0.7049]
[1724270966650,3.76792,2654.0,2653.2,3.0]
[1724270967428,1.17153698,2654.1,2653.2,3.0]
[1724270967429,4.93930698,2654.1,2653.2,3.0]
[1724270967825,3.76777,2654.1,2653.2,3.0]
[1724270968069,7.53561,2654.1,2653.2,3.0]
[1724270968216,8.70714698,2654.1,2653.2,3.0]
[1724270968421,8.70718698,2654.1,2653.2,4.1976875]
[1724270968620,3.7679,2654.0,2653.2,4.1976875]
[1724270969050,3.76808,2653.9,2653.2,4.1976875]
[1724270969378,0.55,2653.8,2653.1,4.049]
[1724270969532,1.17153698,2653.8,2653.1,4.049]
[1724270969733,1.17153698,2653.9,2653.1,4.049]
[1724270969940,3.76841,2653.7,2653.1,4.049]
[1724270970135,8.70813698,2653.8,2653.1,4.049]
[1724270970383,4.93983698,2653.8,2653.1,4.049]
[1724270970547,1.17153698,2653.7,2653.1,4.049]
[1724270970751,5.33036584,2653.8,2653.1,4.049]
[1724270970752,4.93983698,2653.8,2653.1,4.049]
[1724270970935,8.70809698,2653.8,2653.1,4.049]
[1724270971370,8.70805698,2653.8,2653.1,4.049]
[1724270972093,4.93979698,2653.8,2653.1,4.049]
[1724270972247,3.76855,2653.6,2653.1,4.049]
[1724270972449,3.76861,2653.5,2653.1,4.049]
[1724270972636,4.94008698,2653.6,2653.1,4.049]
[1724270972843,3.76855,2653.6,2653.1,4.049]
[1724270973051,4.94008698,2653.6,2653.1,4.049]
[1724270973793,3.76892,2653.3,2653.1,4.049]
[1724270974091,4.94014698,2653.5,2652.7,4.1802]
[1724270974092,8.70897698,2653.5,2652.7,4.1802]
[1724270974287,4.94023698,2653.5,2652.7,4.1802]
[1724270974611,3.76919,2653.1,2652.7,4.1802]
[1724270974945,7.53849,2653.1,2652.7,4.1802]
[1724270975141,3.76919,2653.1,2652.7,4.1802]
[1724270975859,3.76907,2653.2,2652.7,4.1802]
[1724270976256,1.17153698,2653.3,2652.7,4.1802]
[1724270976657,4.94060698,2653.2,2652.7,4.1802]
[1724270977234,4.94060698,2653.2,2651.4,1.5417701]
[1724270977235,3.76932,2653.0,2652.3,3.8775]
[1724270977538,1.17153698,2653.0,2652.3,3.8775]
[1724270977869,4.94078698,2653.1,2652.3,3.8775]
[1724270978057,1.17153698,2653.1,2652.3,3.8775]
[1724270978233,3.76907,2653.2,2652.3,3.8775]
[1724270978438,4.94060698,2653.2,2652.3,5.019348]
[1724270978675,4.94060698,2653.2,2652.3,3.8775]
[1724270979197,3.76924,2653.1,2652.3,3.8775]
[1724270979357,4.94079698,2653.1,2652.3,3.8775]
[1724270979558,4.94107698,2652.9,2652.3,3.8775]
[1724270979941,3.7697,2652.8,2652.3,3.8775]
[1724270980136,1.17153698,2652.9,2652.3,3.8775]
[1724270980342,4.94086698,2653.0,2652.3,3.8775]
[1724270981907,3.76956,2652.9,2652.3,3.8775]
[1724270982192,1.17153698,2652.9,2652.3,3.8775]
[1724270982354,4.94102698,2652.9,2652.3,3.8775]
[1724270982559,2.94277926,2652.9,2651.3,8.62225846]
[1724270982776,2.94277926,2652.9,2651.4,4.1421]
[1724270982777,8.61153698,2652.6,2651.4,4.1421]
[1724270982965,3.77046,2652.2,2651.4,4.1421]
[1724270983295,3.77059,2652.1,2651.4,4.933494]
[1724270983645,8.71236698,2652.3,2651.4,4.933494]
[1724270983874,4.94169698,2652.5,2651.4,8.705064]
[1724270984062,3.7702,2652.4,2651.5,0.8705064]
[1724270984402,3.77033,2652.3,2651.5,0.8705064]
[1724270984603,4.94166698,2652.5,2651.5,4.6419264]
[1724270984886,3.77013,2652.5,2651.5,4.6419264]
[1724270985089,7.54026,2652.5,2651.5,0.8705064]
[1724270985294,1.17153698,2652.5,2651.4,4.1421]
[1724270985498,7.54142,2652.1,2651.4,4.1421]
[1724270985816,3.77069,2652.1,2651.4,4.1421]
[1724270986102,1.17153698,2652.4,2651.4,4.1421]
[1724270986402,5.33216584,2652.5,2651.4,4.1421]
[1724270986403,4.94156698,2652.5,2651.5,0.41421]
[1724270986688,4.94156698,2652.5,2651.5,4.18557]
[1724270986689,3.77003,2652.5,2651.5,4.18557]
[1724270986896,3.77003,2652.5,2651.6,1.209913]
[1724270987644,7.44,2652.6,2651.8,4.2532]
[1724270987849,7.44,2652.6,2651.5,0.41421]
[1724270987850,7.44,2652.6,2652.1,4.2532]
[1724270988081,12.26,2652.9,2652.1,4.2532]
[1724270988611,16.02949,2652.9,2652.1,4.2532]
[1724270988813,3.76962,2652.8,2652.1,4.2532]
[1724270989100,3.7701,2652.5,2652.1,4.2532]
[1724270989599,7.54022,2652.5,2652.1,4.2532]
[1724270989799,3.77024,2652.4,2652.1,4.2532]
[1724270990090,3.7701,2652.5,2651.6,4.2389]
[1724270990293,3.7701,2652.5,2651.7,3.0]
[1724270990499,3.77026,2652.4,2651.7,3.0]
[1724270990653,1.17153698,2652.6,2651.7,3.0]
[1724270990850,3.77032,2652.3,2651.7,3.0]
[1724270991815,1.17153698,2652.6,2651.7,3.0]
[1724270991971,5.33190584,2652.7,2651.9,8.00976]
[1724270991972,1.17153698,2652.7,2651.9,8.00976]
[1724270992296,7.0826647,2653.0,2651.9,8.00976]
[1724270992297,10.05392698,2653.0,2652.0,3.77061]
[1724270992599,3.76955,2652.9,2651.9,4.2389]
[1724270992779,3.76955,2652.9,2652.0,7.64409]
[1724270992951,3.76955,2652.9,2652.0,3.87337]
[1724270993567,7.53909,2652.9,2652.0,3.87337]
[1724270993797,3.76954,2652.9,2652.0,3.87337]
[1724270994670,3.76968,2652.8,2652.0,3.87337]
[1724270994867,1.17153698,2652.9,2652.0,3.0]
[1724270995195,3.76986,2652.7,2652.0,3.0]
[1724270995401,3.76984,2652.7,2652.0,3.0]
[1724270995756,1.17153698,2652.8,2651.9,4.2389]
[1724270995757,3.77033,2652.3,2651.9,4.2389]
[1724270996060,7.54027,2652.5,2651.9,4.2389]
[1724270996286,3.77018,2652.4,2651.9,4.2389]
[1724270996454,1.44489726,2652.6,2651.5,4.0368]
[1724270996455,3.77061,2652.1,2651.5,4.0368]
[1724270997385,3.77061,2652.1,2651.1,3.77199]
[1724270997586,3.9722,2652.2,2650.9,3.77226]
[1724270997587,8.88395,2651.9,2650.9,3.77226]
[1724270997826,12.553,2651.9,2650.9,0.83999705]
[1724270997984,7.44,2651.9,2651.2,7.80865]
[1724270998186,7.44,2651.9,2651.2,4.0368]
[1724270998408,7.44,2651.9,2651.2,4.817682]
[1724270999085,7.44,2651.9,2651.2,4.0368]
[1724270999688,11.21093,2651.9,2651.2,4.0368]
[1724271000020,7.44,2651.9,2651.2,4.0368]
[1724271001472,7.44,2651.9,2651.5,3.77144]
[1724271001634,11.2101,2652.5,2651.5,3.77144]
[1724271001970,11.2101,2652.5,2651.6,0.377144]
[1724271002263,3.77017,2652.4,2651.6,0.377144]
[1724271002489,3.77017,2652.4,2651.3,6.77162]
[1724271002621,3.77017,2652.4,2651.4,3.77151]
[1724271002981,3.77017,2652.4,2651.5,3.0]
[1724271003160,7.44,2652.5,2651.5,6.77143]
[1724271003475,1.17153698,2652.7,2651.9,3.77087]
[1724271003476,7.44,2652.7,2651.9,3.77087]
[1724271003633,7.44,2652.7,2652.0,3.77072]
[1724271003839,7.44,2652.7,2651.7,7.82833]
[1724271004162,11.20974,2652.7,2651.8,0.8505473]
[1724271004364,7.44,2652.7,2651.8,0.8505473]